fUST/lending_fUST_20251128
["ID","MTS","AMOUNT","RATE_DAILY","PERIOD"]
[395020038,1764340254644,-500.0,0.00019178,2]
[395020039,1764340254655,-500.0,0.00019178,2]
[395020040,1764340254668,-500.0,0.00019178,2]
[395020041,1764340254677,-1265.88,0.00019178,2]
[395020042,1764340254687,-500.0,0.00019178,2]
[395020043,1764340254697,-500.0,0.00019178,2]
[395020044,1764340254708,-500.0,0.00019178,2]
[395020045,1764340254717,-500.0,0.00019178,2]
[395020046,1764340254727,-518.82791902,0.00019178,2]
[395020047,1764340254740,-500.0,0.00019178,2]
[395020048,1764340254750,-641.24475142,0.00019178,2]
[395020049,1764340254760,-151.483111,0.00019178,2]
[395020050,1764340254769,-500.0,0.00019178,2]
[395020051,1764340254780,-500.0,0.00019178,2]
[395020052,1764340254790,-500.0,0.00019178,2]
[395020053,1764340254800,-264.360234,0.00019178,7]
[395020054,1764340254810,-1296.25,0.00019178,2]
[395020055,1764340254820,-500.0,0.00019178,2]
[395020056,1764340254833,-560.22,0.00019178,2]
[395020057,1764340254842,-500.0,0.00019178,2]
[395020058,1764340254851,-500.0,0.00019178,2]
[395020059,1764340254861,-694.86,0.00019178,2]
[395020060,1764340254871,-815.07,0.00019178,2]
[395020061,1764340254882,-500.0,0.00019178,2]
[395020062,1764340254892,-500.0,0.00019178,2]
[395020063,1764340254902,-820.76,0.00019178,2]
[395020064,1764340254911,-500.0,0.00019178,2]
[395020065,1764340254921,-500.0,0.00019178,2]
[395020066,1764340254931,-500.0,0.00019178,2]
[395020067,1764340254941,-500.0,0.00019178,2]
[395020068,1764340254951,-500.0,0.00019178,2]
[395020069,1764340254962,-729.55,0.00019178,2]
[395020070,1764340254972,-501.03712793,0.00019178,2]
[395020071,1764340254982,-3591.47,0.00019178,2]
[395020072,1764340254991,-852.96,0.00019178,2]
[395020073,1764340255001,-500.0,0.00019178,2]
[395020074,1764340255011,-987.59,0.00019178,2]
[395020075,1764340255020,-500.0,0.00019178,2]
[395020076,1764340255029,-500.0,0.00019178,2]
[395020077,1764340255039,-500.0,0.00019178,2]
[395020078,1764340255048,-677.1,0.00019178,2]
[395020079,1764340255057,-500.0,0.00019178,2]
[395020080,1764340255066,-1175.68,0.00019178,2]
[395020081,1764340255079,-500.0,0.00019178,2]
[395020082,1764340255165,-500.0,0.00019178,2]
[395020083,1764340255175,-500.0,0.00019178,2]
[395020084,1764340255185,-500.0,0.00019178,2]
[395020085,1764340255194,-500.0,0.00019178,2]
[395020086,1764340255203,-907.83,0.00019178,2]
[395020087,1764340255212,-500.0,0.00019178,2]
[395020088,1764340255221,-500.0,0.00019178,2]
[395020089,1764340255230,-500.0,0.00019178,2]
[395020090,1764340255239,-500.0,0.00019178,2]
[395020091,1764340255248,-500.0,0.00019178,2]
[395020092,1764340255257,-3647.82,0.00019178,2]
[395020093,1764340255266,-2736.93,0.00019178,2]
[395020094,1764340255275,-500.0,0.00019178,2]
[395020095,1764340255284,-500.0,0.00019178,2]
[395020096,1764340255293,-1214.94,0.00019178,2]
[395020097,1764340255303,-522.53,0.00019178,2]
[395020098,1764340255312,-500.0,0.00019178,2]
[395020099,1764340255321,-500.0,0.00019178,2]
[395020100,1764340255332,-500.0,0.00019178,2]
[395020101,1764340255341,-683.99,0.00019178,2]
[395020102,1764340255350,-500.0,0.00019178,2]
[395020103,1764340255360,-500.0,0.00019178,2]
[395020104,1764340255369,-500.0,0.00019178,2]
[395020105,1764340255379,-2117.58,0.00019178,2]
[395020106,1764340255388,-500.0,0.00019178,2]
[395020107,1764340255398,-1303.23,0.00019178,2]
[395020108,1764340255407,-637.67,0.00019178,2]
[395020109,1764340255417,-500.0,0.00019178,2]
[395020110,1764340255426,-2080.86,0.00019178,2]
[395020111,1764340255435,-500.0,0.00019178,2]
[395020112,1764340255444,-1176.62,0.00019178,2]
[395020113,1764340255453,-1034.65,0.00019178,2]
[395020114,1764340255462,-1043.65,0.00019178,2]
[395020115,1764340255472,-500.0,0.00019178,2]
[395020116,1764340255481,-753.18,0.00019178,2]
[395020117,1764340255489,-500.0,0.00019178,2]
[395020118,1764340255498,-833.58,0.00019178,2]
[395020119,1764340255507,-500.0,0.00019178,2]
[395020120,1764340255517,-926.54,0.00019178,2]
[395020121,1764340255526,-500.0,0.00019178,2]
[395020122,1764340255535,-1068.5,0.00019178,2]
[395020123,1764340255544,-500.0,0.00019178,2]
[395020124,1764340255553,-500.0,0.00019178,2]
[395020125,1764340255562,-500.0,0.00019178,2]
[395020126,1764340255571,-500.0,0.00019178,2]
[395020127,1764340255582,-930.34,0.00019178,2]
[395020128,1764340255592,-513.41,0.00019178,2]
[395020129,1764340255601,-556.03,0.00019178,2]
[395020130,1764340255610,-500.0,0.00019178,2]
[395020131,1764340255619,-500.0,0.00019178,2]
[395020132,1764340255628,-438.81813897,0.00019178,2]
[395020133,1764340255637,-500.0,0.00019178,2]
[395020134,1764340255648,-500.0,0.00019178,2]
[395020135,1764340255659,-980.43,0.00019178,2]
[395020136,1764340255668,-500.0,0.00019178,2]
[395020137,1764340255677,-547.93468791,0.00019178,2]
[395020138,1764340255687,-500.0,0.00019178,2]
[395020139,1764340255696,-500.0,0.00019178,2]
[395020140,1764340255707,-500.0,0.00019178,2]
[395020141,1764340255717,-500.0,0.00019178,2]
[395020142,1764340255727,-500.0,0.00019178,2]
[395020143,1764340255739,-500.0,0.00019178,2]
[395020144,1764340255748,-620.6,0.00019178,2]
[395020145,1764340255758,-1157.33,0.00019178,2]
[395020146,1764340255767,-500.0,0.00019178,2]
[395020147,1764340255777,-356.71426285,0.00019178,2]
[395020148,1764340255787,-500.0,0.00019178,2]
[395020149,1764340255796,-572.69,0.00019178,2]
[395020150,1764340255809,-500.0,0.00019178,2]
[395020151,1764340255818,-500.0,0.00019178,2]
[395020152,1764340255829,-820.98,0.00019178,2]
[395020153,1764340255839,-337.54704579,0.00019178,2]
[395020154,1764340255848,-500.0,0.00019178,2]
[395020155,1764340255857,-500.0,0.00019178,2]
[395020156,1764340255867,-500.0,0.00019178,2]
[395020157,1764340255876,-500.0,0.00019178,2]
[395020158,1764340255886,-592.74,0.00019178,2]
[395020159,1764340255896,-588.33624035,0.00019178,2]
[395020160,1764340255905,-500.0,0.00019178,2]
[395020161,1764340255914,-500.0,0.00019178,2]
[395020162,1764340255924,-4467.42,0.00019178,2]
[395020163,1764340255933,-500.0,0.00019178,2]
[395020164,1764340255942,-500.0,0.00019178,2]
[395020165,1764340255951,-500.0,0.00019178,2]
[395020166,1764340255961,-500.0,0.00019178,2]
[395020167,1764340255971,-579.53981913,0.00019178,2]
[395020168,1764340255980,-151.0,0.00019178,2]
[395020169,1764340255990,-151.0,0.00019178,2]
[395020170,1764340255999,-151.0,0.00019178,2]
[395020171,1764340256008,-500.0,0.00019178,2]
[395020172,1764340256017,-563.74,0.00019178,2]
[395020173,1764340256026,-1358.45,0.00019178,2]
[395020174,1764340256036,-151.0,0.00019178,2]
[395020175,1764340256045,-151.0,0.00019178,2]
[395020176,1764340256055,-151.0,0.00019178,2]
[395020177,1764340256063,-151.0,0.00019178,2]
[395020178,1764340256072,-196.263495,0.00019178,2]
[395020179,1764340256083,-500.0,0.00019178,2]
[395020180,1764340256093,-500.0,0.00019178,2]
[395020181,1764340256102,-500.0,0.00019178,2]
[395020182,1764340256111,-500.0,0.00019178,2]
[395020183,1764340256120,-500.0,0.00019178,2]
[395020184,1764340256129,-758.13,0.00019178,2]
[395020185,1764340256139,-500.0,0.00019178,2]
[395020186,1764340256148,-500.0,0.00019178,2]
[395020187,1764340256157,-500.0,0.00019178,2]
[395020188,1764340256166,-500.0,0.00019178,2]
[395020189,1764340256176,-2088.42,0.00019178,2]
[395020190,1764340256187,-500.0,0.00019178,2]
[395020191,1764340256202,-500.0,0.00019178,2]
[395020192,1764340256211,-1405.73,0.00019178,2]
[395020193,1764340256220,-1188.64,0.00019178,2]
[395020194,1764340256230,-500.0,0.00019178,2]
[395020195,1764340256239,-542.87556683,0.00019178,2]
[395020196,1764340256248,-500.0,0.00019178,2]
[395020197,1764340256258,-500.0,0.00019178,2]
[395020198,1764340256267,-500.0,0.00019178,2]
[395020199,1764340256276,-500.0,0.00019178,2]
[395020200,1764340256285,-1601.04,0.00019178,2]
[395020201,1764340256295,-500.0,0.00019178,2]
[395020202,1764340256303,-1191.11,0.00019178,2]
[395020203,1764340256313,-500.0,0.00019178,2]
[395020204,1764340256322,-500.0,0.00019178,2]
[395020205,1764340256332,-919.06,0.00019178,2]
[395020206,1764340256341,-500.0,0.00019178,2]
[395020207,1764340256350,-504.56,0.00019178,2]
[395020208,1764340256360,-249.226031,0.00019178,2]
[395020209,1764340256369,-500.0,0.00019178,2]
[395020210,1764340256379,-500.0,0.00019178,2]
[395020211,1764340256388,-500.0,0.00019178,2]
[395020212,1764340256396,-570.75,0.00019178,2]
[395020213,1764340256406,-500.0,0.00019178,2]
[395020214,1764340256415,-715.68,0.00019178,2]
[395020215,1764340256424,-500.0,0.00019178,2]
[395020216,1764340256433,-500.0,0.00019178,2]
[395020217,1764340256442,-2898.48,0.00019178,2]
[395020218,1764340256451,-500.0,0.00019178,2]
[395020219,1764340256460,-1420.96,0.00019178,2]
[395020220,1764340256469,-500.0,0.00019178,2]
[395020221,1764340256478,-1436.04,0.00019178,2]
[395020222,1764340256487,-500.0,0.00019178,2]
[395020223,1764340256497,-500.0,0.00019178,2]
[395020224,1764340256506,-500.0,0.00019178,2]
[395020225,1764340256515,-649.1,0.00019178,2]
[395020226,1764340256524,-500.0,0.00019178,2]
[395020227,1764340256533,-500.0,0.00019178,2]
[395020228,1764340256543,-781.15,0.00019178,2]
[395020229,1764340256552,-500.0,0.00019178,2]
[395020230,1764340256561,-653.13,0.00019178,2]
[395020231,1764340256570,-500.0,0.00019178,2]
[395020232,1764340256579,-151.0,0.00019178,2]
[395020233,1764340256588,-288.217154,0.00019178,2]
[395020234,1764340256596,-288.217154,0.00019178,2]
[395020235,1764340256606,-288.217154,0.00019178,2]
[395020236,1764340256616,-288.217154,0.00019178,2]
[395020237,1764340256626,-288.217154,0.00019178,2]
[395020238,1764340256635,-288.217154,0.00019178,2]
[395020239,1764340256644,-500.0,0.00019178,2]
[395020240,1764340256654,-1102.79,0.00019178,2]
[395020241,1764340256667,-500.0,0.00019178,2]
[395020242,1764340256677,-500.0,0.00019178,2]
[395020243,1764340256686,-288.217154,0.00019178,2]
[395020244,1764340256697,-288.217154,0.00019178,2]
[395020245,1764340256707,-288.217154,0.00019178,2]
[395020246,1764340256716,-288.217154,0.00019178,2]
[395020247,1764340256725,-288.217154,0.00019178,2]
[395020248,1764340256736,-288.217155,0.00019178,2]
[395020249,1764340256745,-742.99,0.00019178,2]
[395020250,1764340256755,-500.0,0.00019178,2]
[395020251,1764340256764,-500.0,0.00019178,2]
[395020252,1764340256773,-500.0,0.00019178,2]
[395020253,1764340256783,-500.0,0.00019178,2]
[395020254,1764340256792,-500.0,0.00019178,2]
[395020255,1764340256801,-500.0,0.00019178,2]
[395020256,1764340256810,-500.0,0.00019178,2]
[395020257,1764340256819,-500.0,0.00019178,2]
[395020258,1764340256829,-500.0,0.00019178,2]
[395020259,1764340256838,-1154.57,0.00019178,2]
[395020260,1764340256847,-1612.14,0.00019178,2]
[395020261,1764340256862,-500.0,0.00019178,2]
[395020262,1764340256872,-500.0,0.00019178,2]
[395020263,1764340256880,-454.27747087,0.00019178,2]
[395020264,1764340256889,-1994.26,0.00019178,2]
[395020265,1764340256898,-500.0,0.00019178,2]
[395020266,1764340256907,-3112.66,0.00019178,2]
[395020267,1764340256916,-1415.93,0.00019178,2]
[395020268,1764340256926,-2079.91,0.00019178,2]
[395020269,1764340256934,-500.0,0.00019178,2]
[395020270,1764340256943,-500.0,0.00019178,2]
[395020271,1764340256952,-500.0,0.00019178,2]
[395020272,1764340256961,-1952.0,0.00019178,2]
[395020273,1764340256970,-500.0,0.00019178,2]
[395020274,1764340256979,-500.0,0.00019178,2]
[395020275,1764340256988,-500.0,0.00019178,2]
[395020276,1764340256996,-590.38,0.00019178,2]
[395020277,1764340257005,-1564.2,0.00019178,2]
[395020278,1764340257014,-500.0,0.00019178,2]
[395020279,1764340257023,-500.0,0.00019178,2]
[395020280,1764340257032,-500.0,0.00019178,2]
[395020281,1764340257041,-500.0,0.00019178,2]
[395020282,1764340257050,-978.81,0.00019178,2]
[395020283,1764340257059,-500.0,0.00019178,2]
[395020284,1764340257067,-500.0,0.00019178,2]
[395020285,1764340257076,-4512.28,0.00019178,2]
[395020286,1764340257086,-500.0,0.00019178,2]
[395020287,1764340257097,-4706.14,0.00019178,2]
[395020288,1764340257115,-500.0,0.00019178,2]
[395020289,1764340257124,-500.0,0.00019178,2]
[395020290,1764340257133,-2516.05,0.00019178,2]
[395020291,1764340257143,-500.0,0.00019178,2]
[395020292,1764340257151,-500.0,0.00019178,2]
[395020293,1764340257161,-585.38,0.00019178,2]
[395020294,1764340257170,-500.0,0.00019178,2]
[395020295,1764340257179,-4898.28,0.00019178,2]
[395020296,1764340257188,-500.0,0.00019178,2]
[395020297,1764340257196,-1088.98,0.00019178,2]
[395020298,1764340257206,-2306.17,0.00019178,2]
[395020299,1764340257216,-844.26,0.00019178,2]
[395020300,1764340257225,-500.0,0.00019178,2]
[395020301,1764340257234,-500.0,0.00019178,2]
[395020302,1764340257243,-1294.744509,0.00019178,2]
[395020303,1764340257252,-568.86,0.00019178,2]
[395020304,1764340257262,-1294.744509,0.00019178,2]
[395020305,1764340257271,-1294.744509,0.00019178,2]
[395020306,1764340257280,-746.17,0.00019178,2]
[395020307,1764340257290,-2559.69,0.00019178,2]
[395020308,1764340257299,-1294.744509,0.00019178,2]
[395020309,1764340257309,-1294.744509,0.00019178,2]
[395020310,1764340257318,-1294.744509,0.00019178,2]
[395020311,1764340257329,-1410.11,0.00019178,2]
[395020312,1764340257338,-1294.744509,0.00019178,2]
[395020313,1764340257347,-500.0,0.00019178,2]
[395020314,1764340257356,-1294.744509,0.00019178,2]
[395020315,1764340257365,-420.61128769,0.00019178,2]
[395020316,1764340257375,-1294.744509,0.00019178,2]
[395020317,1764340257384,-500.0,0.00019178,2]
[395020318,1764340257395,-1294.744509,0.00019178,2]
[395020319,1764340257403,-1294.744509,0.00019178,2]
[395020320,1764340257413,-1294.744509,0.00019178,2]
[395020321,1764340257422,-500.0,0.00019178,2]
[395020322,1764340257431,-2515.05,0.00019178,2]
[395020323,1764340257440,-500.0,0.00019178,2]
[395020324,1764340257449,-728.19,0.00019178,2]
[395020325,1764340257458,-500.0,0.00019178,2]
[395020326,1764340257468,-500.0,0.00019178,2]
[395020327,1764340257477,-761.14,0.00019178,2]
[395020328,1764340257486,-500.0,0.00019178,2]
[395020329,1764340257495,-586.25,0.00019178,2]
[395020330,1764340257504,-953.14,0.00019178,2]
[395020331,1764340257514,-1992.03,0.00019178,2]
[395020332,1764340257523,-500.0,0.00019178,2]
[395020333,1764340257532,-2142.56,0.00019178,2]
[395020334,1764340257541,-1536.37,0.00019178,2]
[395020335,1764340257550,-1021.23,0.00019178,2]
[395020336,1764340257559,-577.33,0.00019178,2]
[395020337,1764340257568,-24954.83,0.00019178,2]
[395020338,1764340257579,-500.0,0.00019178,2]
[395020339,1764340257588,-500.0,0.00019178,2]
[395020340,1764340257597,-2655.41,0.00019178,2]
[395020341,1764340257606,-500.0,0.00019178,2]
[395020342,1764340257616,-927.08,0.00019178,2]
[395020343,1764340257625,-500.0,0.00019178,2]
[395020344,1764340257634,-1925.286086,0.00019178,2]
[395020345,1764340257643,-1925.286086,0.00019178,2]
[395020346,1764340257656,-827.59,0.00019178,2]
[395020347,1764340257665,-1925.286086,0.00019178,2]
[395020348,1764340257675,-175.19226876,0.00019178,2]
[395020349,1764340257683,-1925.286086,0.00019178,2]
[395020350,1764340257693,-1925.286086,0.00019178,2]
[395020351,1764340257703,-500.0,0.00019178,2]
[395020352,1764340257712,-1925.286086,0.00019178,2]
[395020353,1764340257722,-5240.11,0.00019178,2]
[395020354,1764340257734,-1555.04,0.00019178,2]
[395020355,1764340257743,-1925.286086,0.00019178,2]
[395020356,1764340257753,-1925.286086,0.00019178,2]
[395020357,1764340257762,-1925.286086,0.00019178,2]
[395020358,1764340257771,-500.0,0.00019178,2]
[395020359,1764340257780,-1925.286086,0.00019178,2]
[395020360,1764340257790,-1925.286086,0.00019178,2]
[395020361,1764340257799,-500.0,0.00019178,2]
[395020362,1764340257809,-1925.286076,0.00019178,2]
[395020363,1764340257818,-7015.19,0.00019178,2]
[395020364,1764340257830,-500.0,0.00019178,2]
[395020365,1764340257840,-1432.56,0.00019178,2]
[395020366,1764340257850,-500.0,0.00019178,2]
[395020367,1764340257860,-1752.05,0.00019178,2]
[395020368,1764340257870,-4547.7,0.00019178,2]
[395020369,1764340257880,-808.09,0.00019178,2]
[395020370,1764340257890,-500.0,0.00019178,2]
[395020371,1764340257901,-500.0,0.00019178,2]
[395020372,1764340257912,-4430.38,0.00019178,2]
[395020373,1764340257923,-1819.02,0.00019178,2]
[395020374,1764340257932,-500.0,0.00019178,2]
[395020375,1764340257942,-1610.31,0.00019178,2]
[395020376,1764340257952,-1199.52,0.00019178,2]
[395020377,1764340257962,-1160.99,0.00019178,2]
[395020378,1764340257972,-4822.35,0.00019178,2]
[395020379,1764340257982,-757.23,0.00019178,2]
[395020380,1764340257991,-500.0,0.00019178,2]
[395020381,1764340258000,-500.0,0.00019178,2]
[395020382,1764340258010,-500.0,0.00019178,2]
[395020383,1764340258019,-2354.48,0.00019178,2]
[395020384,1764340258028,-500.0,0.00019178,2]
[395020385,1764340258037,-500.0,0.00019178,2]
[395020386,1764340258046,-1618.5,0.00019178,2]
[395020387,1764340258055,-500.0,0.00019178,2]
[395020388,1764340258064,-519.0703218,0.00019178,2]
[395020389,1764340258074,-500.0,0.00019178,2]
[395020390,1764340258087,-500.0,0.00019178,2]
[395020391,1764340258097,-500.0,0.00019178,2]
[395020392,1764340258106,-500.0,0.00019178,2]
[395020393,1764340258115,-500.0,0.00019178,2]
[395020394,1764340258125,-500.0,0.00019178,2]
[395020395,1764340258135,-804.22,0.00019178,2]
[395020396,1764340258144,-915.47,0.00019178,2]
[395020397,1764340258153,-1488.05,0.00019178,2]
[395020398,1764340258162,-1077.95,0.00019178,2]
[395020399,1764340258171,-1212.26,0.00019178,2]
[395020400,1764340258180,-500.0,0.00019178,2]
[395020401,1764340258190,-815.77,0.00019178,2]
[395020402,1764340258199,-500.0,0.00019178,2]
[395020403,1764340258208,-618.38727257,0.00019178,2]
[395020404,1764340258217,-946.16,0.00019178,2]
[395020405,1764340258226,-500.0,0.00019178,2]
[395020406,1764340258236,-500.0,0.00019178,2]
[395020407,1764340258245,-997.25,0.00019178,2]
[395020408,1764340258254,-500.0,0.00019178,2]
[395020409,1764340258268,-500.0,0.00019178,2]
[395020410,1764340258277,-500.0,0.00019178,2]
[395020411,1764340258287,-5594.11,0.00019178,2]
[395020412,1764340258297,-554.23,0.00019178,2]
[395020413,1764340258306,-1149.45,0.00019178,2]
[395020414,1764340258315,-500.0,0.00019178,2]
[395020415,1764340258324,-500.0,0.00019178,2]
[395020416,1764340258337,-503.64937969,0.00019178,2]
[395020417,1764340258346,-500.0,0.00019178,2]
[395020418,1764340258355,-500.0,0.00019178,2]
[395020419,1764340258364,-500.0,0.00019178,2]
[395020420,1764340258373,-1773.85,0.00019178,2]
[395020421,1764340258382,-500.0,0.00019178,2]
[395020422,1764340258394,-500.0,0.00019178,2]
[395020423,1764340258403,-500.0,0.00019178,2]
[395020424,1764340258412,-1316.67,0.00019178,2]
[395020425,1764340258421,-500.0,0.00019178,2]
[395020426,1764340258430,-10863.08,0.00019178,2]
[395020427,1764340258438,-500.0,0.00019178,2]
[395020428,1764340258447,-2586.38,0.00019178,2]
[395020429,1764340258456,-500.0,0.00019178,2]
[395020430,1764340258466,-3317.16,0.00019178,2]
[395020431,1764340258475,-1803.11,0.00019178,2]
[395020432,1764340258484,-500.0,0.00019178,2]
[395020433,1764340258493,-1762.19,0.00019178,2]
[395020434,1764340258502,-500.0,0.00019178,2]
[395020435,1764340258511,-500.0,0.00019178,2]
[395020436,1764340258520,-500.0,0.00019178,2]
[395020437,1764340258529,-500.0,0.00019178,2]
[395020438,1764340258539,-500.0,0.00019178,2]
[395020439,1764340258548,-500.0,0.00019178,2]
[395020440,1764340258557,-5891.14,0.00019178,2]
[395020441,1764340258566,-500.0,0.00019178,2]
[395020442,1764340258575,-1310.6,0.00019178,2]
[395020443,1764340258586,-500.0,0.00019178,2]
[395020444,1764340258596,-548.03,0.00019178,2]
[395020445,1764340258605,-586.42,0.00019178,2]
[395020446,1764340258614,-2266.9,0.00019178,2]
[395020447,1764340258623,-500.0,0.00019178,2]
[395020448,1764340258632,-500.0,0.00019178,2]
[395020449,1764340258642,-500.0,0.00019178,2]
[395020450,1764340258651,-500.0,0.00019178,2]
[395020451,1764340258663,-500.0,0.00019178,2]
[395020452,1764340258672,-1432.0,0.00019178,2]
[395020453,1764340258680,-860.39,0.00019178,2]
[395020454,1764340258690,-1563.47,0.00019178,2]
[395020455,1764340258700,-231.17863451,0.00019178,2]
[395020456,1764340258709,-976.7,0.00019178,2]
[395020457,1764340258718,-3687.72,0.00019178,2]
[395020458,1764340258727,-2923.22,0.00019178,2]
[395020459,1764340258737,-6024.74,0.00019178,2]
[395020460,1764340258747,-3305.63,0.00019178,2]
[395020461,1764340258756,-500.0,0.00019178,2]
[395020462,1764340258765,-1024.91,0.00019178,2]
[395020463,1764340258774,-500.0,0.00019178,2]
[395020464,1764340258784,-500.0,0.00019178,2]
[395020465,1764340258793,-1100.81,0.00019178,2]
[395020466,1764340258803,-524.30748145,0.00019178,2]
[395020467,1764340258812,-1341.1,0.00019178,2]
[395020468,1764340258821,-2602.83,0.00019178,2]
[395020469,1764340258832,-619.89,0.00019178,2]
[395020470,1764340258841,-350.55148102,0.00019178,2]
[395020471,1764340258851,-634.3,0.00019178,2]
[395020472,1764340258860,-1232.58,0.00019178,2]
[395020473,1764340258868,-754.6,0.00019178,2]
[395020474,1764340258878,-1025.12,0.00019178,2]
[395020475,1764340258887,-920.44,0.00019178,2]
[395020476,1764340258896,-1284.02,0.00019178,2]
[395020477,1764340258905,-500.0,0.00019178,2]
[395020478,1764340258914,-500.0,0.00019178,2]
[395020479,1764340258924,-500.0,0.00019178,2]
[395020480,1764340258933,-820.15,0.00019178,2]
[395020481,1764340258943,-500.0,0.00019178,2]
[395020482,1764340258953,-825.45,0.00019178,2]
[395020483,1764340258963,-500.0,0.00019178,2]
[395020484,1764340258972,-500.0,0.00019178,2]
[395020485,1764340258981,-4232.66,0.00019178,2]
[395020486,1764340258990,-500.0,0.00019178,2]
[395020487,1764340258999,-500.0,0.00019178,2]
[395020488,1764340259008,-592.37356752,0.00019178,2]
[395020489,1764340259018,-1084.15,0.00019178,2]
[395020490,1764340259027,-500.0,0.00019178,2]
[395020491,1764340259036,-534.43,0.00019178,2]
[395020492,1764340259045,-500.0,0.00019178,2]
[395020493,1764340259055,-500.0,0.00019178,2]
[395020494,1764340259064,-500.0,0.00019178,2]
[395020495,1764340259073,-504.28678069,0.00019178,2]
[395020496,1764340259083,-500.0,0.00019178,2]
[395020497,1764340259092,-500.0,0.00019178,2]
[395020498,1764340259101,-5589.09,0.00019178,2]
[395020499,1764340259110,-500.0,0.00019178,2]
[395020500,1764340259119,-500.0,0.00019178,2]
[395020501,1764340259127,-599.74,0.00019178,2]
[395020502,1764340259136,-2087.29,0.00019178,2]
[395020503,1764340259145,-500.0,0.00019178,2]
[395020504,1764340259154,-13950.68,0.00019178,2]
[395020505,1764340259163,-500.0,0.00019178,2]
[395020506,1764340259275,-1445.55,0.00019178,2]
[395020507,1764340259293,-4646.05,0.00019178,2]
[395020508,1764340259303,-5777.78,0.00019178,2]
[395020509,1764340259312,-291.40567598,0.00019178,2]
[395020510,1764340259321,-500.0,0.00019178,2]
[395020511,1764340259332,-1399.36336193,0.00019178,2]
[395020512,1764340259801,-798.94663807,0.00019178,2]
[395020513,1764340259811,-500.0,0.00019178,2]
[395020514,1764340259822,-500.0,0.00019178,2]
[395020515,1764340259836,-1509.16,0.00019178,2]
[395020516,1764340259847,-500.0,0.00019178,2]
[395020517,1764340259858,-513.42322386,0.00019178,2]
[395020518,1764340259868,-4924.15,0.00019178,2]
[395020519,1764340259879,-500.0,0.00019178,2]
[395020520,1764340259890,-4258.99,0.00019178,2]
[395020521,1764340259901,-10264.13013851,0.00019178,2]
[395020522,1764340363467,185.052165,0.0002,30]
[395020523,1764340364080,185.052165,0.0002,30]
[395020524,1764340364505,185.052165,0.0002,30]
[395020525,1764340370972,185.052165,0.0002,30]
[395020526,1764340371309,185.052165,0.0002,30]
[395020549,1764340862734,225.0,8.926e-05,2]
[395020550,1764340885857,225.0,8.926e-05,2]
[395020551,1764340909406,225.0,8.926e-05,2]
[395020552,1764340932196,225.0,8.926e-05,2]
[395020553,1764340955296,225.0,8.926e-05,2]
[395020554,1764340963324,225.0,8.926e-05,2]
[395020555,1764340971732,225.0,8.926e-05,2]
[395020556,1764340979730,225.0,8.926e-05,2]
[395020563,1764340987850,225.0,8.926e-05,2]
[395020564,1764340996888,225.0,8.926e-05,2]
[395020565,1764341005480,225.0,8.926e-05,2]